Cogmind - Beta 14 @@@ ROGUE MODE // 2024.10.04 @ 18:39:41 Player: Spoing Result: Destroyed by as-85824 with Assembled Heavy Rifle Performance ------------- Evolutions (0) 0 Regions Visited (4) 800 Robots Destroyed (17) 85 Value Destroyed (395) 395 Prototype IDs (25) 500 Alien Tech Used (0) 0 Bonus (332) 332 TOTAL SCORE: 2112 Bonus ------- Follower Combat Kills 32 Aligned with FarCom 300 Cogmind --------- Core Integrity 0/250 Matter 247/300 Energy 250/250 System Corruption 1% Temperature Cool (0) Movement Rolling (125) Ox3 Location -9/Mines Parts ------- > --- POWER (1) -------- Ion Engine > --- PROPULSION (2) --- Wheel Flight Unit > --- UTILITY (2) ------ Large Storage Unit Supersonic Drone Bay (1/1) > --- WEAPON (2) ------- Assault Rifle Grenade Launcher > --- INVENTORY (15) --- Light Ion Engine Light Nuclear Core Flight Unit Flight Unit Flight Unit Flight Unit Structural Scanner Structural Scanner Signal Interpreter Improved Terrain Scanner ECM Suite Assault Rifle Light Assault Rifle Mining Laser Hammer Peak State ------------ > --- POWER ------------ Ion Engine > --- PROPULSION ------- Flight Unit Flight Unit > --- UTILITY ---------- Large Storage Unit Supersonic Drone Bay > --- WEAPON ----------- Assault Rifle Assault Rifle > --- INVENTORY -------- Light Ion Engine Light Nuclear Core Flight Unit Flight Unit Flight Unit Structural Scanner Structural Scanner Signal Interpreter ECM Suite Light Assault Rifle Grenade Launcher Mining Laser Hammer [Rating: 15] Favorites ----------- Power Ion Engine Engine Ion Engine Propulsion Wheel Wheel Wheel Flight Unit Flight Unit Utility Large Storage Unit Device Structural Scanner Storage Large Storage Unit Protection Power Shielding Weapon Assault Rifle Energy Gun Medium Laser Ballistic Gun Assault Rifle Launcher Grenade Launcher Build | -11 -10 -10 -10 -9 ------- Run | Yrd Mat Min Exi Min Slots Evolved . | . . . . . Power . | . . . . . Propulsion . | . . . . . Utility . | . . . . . Weapon . | . . . . . Parts Attached 26 | 7 9 2 . 8 Power 2 | 1 1 . . . Engine 2 | 1 1 . . . Core . | . . . . . Reactor . | . . . . . Propulsion 7 | 1 2 . . 4 Treads . | . . . . . Leg . | . . . . . Wheel 4 | 1 2 . . 1 Hover . | . . . . . Flight 3 | . . . . 3 Utility 6 | 1 3 1 . 1 Device 3 | . 1 1 . 1 Storage 2 | 1 1 . . . Processor . | . . . . . Hackware . | . . . . . Protection 1 | . 1 . . . Artifact . | . . . . . Weapon 11 | 4 3 1 . 3 Energy Gun 3 | 1 2 . . . Energy Cannon . | . . . . . Ballistic Gun 6 | 3 1 1 . 1 Ballistic Cannon . | . . . . . Launcher 2 | . . . . 2 Special Weapon . | . . . . . Impact Weapon . | . . . . . Slashing Weapon . | . . . . . Piercing Weapon . | . . . . . Special Melee Weapon . | . . . . . Unidentified Prototypes . | . . . . . Parts Lost 6 | . 4 1 . 1 Power 1 | . 1 . . . Propulsion 3 | . 1 1 . 1 Utility 1 | . 1 . . . Weapon 1 | . 1 . . . Highest Loss Streak 4 | . 4 1 . 1 To Critical Strikes . | . . . . . Average Slot Usage (%) 83 | . 79 87 85 94 Engine 13 | . 13 14 14 14 Wheel 15 | . 17 15 14 9 Flight 2 | . . . . 13 Device 7 | . 1 14 14 14 Storage 14 | . 14 14 14 14 Protection 1 | . 3 . . . Energy Gun 2 | . 4 3 . . Ballistic Gun 25 | . 23 24 28 27 Peak Build Rating 15 | 5 8 8 8 15 Average Rating 7 | 2 5 7 7 13 On Entrance 5 | . 5 8 7 8 Naked Turns . | . . . . . Heaviest Build 30 | 14 29 29 29 30 Greatest Support 20 | 10 20 20 10 10 Greatest Overweight (x) 3 | 2 1 2 2 3 Average Overweight (x) 1 | . . 1 2 2 Largest Inventory Capacity 15 | 8 15 15 15 15 Average Capacity 11 | 5 8 15 15 15 Most Carried 15 | 5 13 15 15 15 Average Carried 10 | 3 6 14 14 14 Final Capacity 15 | 8 15 15 15 15 Final Carried 15 | 3 13 15 15 15 Class Distribution -------------------- 100% | Mutant Dominant Class ---------------- Mutant | -10/Materials Mutant | -10/Mines Mutant | -10/Exiles Mutant | -9/Mines Resources | -11 -10 -10 -10 -9 ----------- Run | Yrd Mat Min Exi Min Matter Collected 645 | 209 325 17 . 94 Remotely . | . . . . . Salvage Created 602 | . 519 30 . 53 Parts 28 | . 24 4 . . Haulers Intercepted 2 | . 2 . . . Recyclers Shooed 1 | . 1 . . . Parts Field Recycled . | . . . . . Retrieved Matter . | . . . . . Parts Self-Destructed . | . . . . . Prevented . | . . . . . Kills | -11 -10 -10 -10 -9 ------- Run | Yrd Mat Min Exi Min Combat Hostiles Destroyed 16 | . 11 2 . 3 Guns 16 | . 11 2 . 3 Classes Destroyed 6 | . 5 . . 1 Tunneler 1 | . 1 . . . Hauler 2 | . 2 . . . Watcher 1 | . 1 . . . Swarmer 5 | . 3 2 . . Grunt 8 | . 8 . . . Assembled 3 | . . . . 3 Best Kill Streak 5 | . 5 2 . 3 Combat Bots Only 5 | . 5 2 . 3 Max Kills in Single Turn 1 | . 1 1 . 1 Gunslinging . | . . . . . Exploded . | . . . . . Melee . | . . . . . Uniques/NPCs Destroyed . | . . . . . Combat | -11 -10 -10 -10 -9 -------- Run | Yrd Mat Min Exi Min Hostile Shots Fired 90 | . 67 5 . 18 Missed 26 | . 20 1 . 5 Damage Taken 916 | . 587 59 . 270 Core 251 | . 165 . . 86 Absorbed by Shields . | . . . . . Core Remaining (%) 100 | 100 . . . . Volleys Fired 80 | . 66 4 . 10 Largest 2 | . 2 2 . 2 Hottest 70 | . 70 70 . 50 Shots Fired 157 | . 130 8 . 19 Gun 156 | . 130 8 . 18 Cannon . | . . . . . Launcher 1 | . . . . 1 Special . | . . . . . Kinetic 127 | . 103 6 . 18 Thermal 29 | . 27 2 . . Explosive 1 | . . . . 1 Electromagnetic . | . . . . . Robot Hit Streak 11 | . 11 2 . 11 Robot Miss Streak 7 | . 7 4 . 5 Penetration Max . | . . . . . Secondary Targets 1 | . 1 . . . Max Gunslinging Chain 1 | . 1 . . . Shots Hit Robots 99 | . 85 2 . 12 Core Hits 39 | . 30 2 . 7 Critical Kills . | . . . . . Critical Parts Destroyed 2 | . 2 . . . Critical Strikes 2 | . 2 . . . Destroy 2 | . 2 . . . Melee Attacks . | . . . . . Impact . | . . . . . Slashing . | . . . . . Piercing . | . . . . . Sneak Attacks . | . . . . . Combat Hostiles . | . . . . . Follow-up Attacks . | . . . . . Damage Inflicted 1045 | . 874 21 . 150 Guns 1042 | . 874 21 . 147 Cannons . | . . . . . Explosions 3 | . . . . 3 Melee . | . . . . . Ramming . | . . . . . Kinetic 803 | . 648 8 . 147 Thermal 239 | . 226 13 . . Explosive 3 | . . . . 3 Electromagnetic . | . . . . . Impact . | . . . . . Slashing . | . . . . . Piercing . | . . . . . Highest Corruption 1 | . 1 1 1 1 Average Corruption 1 | . 1 1 1 1 Corruption Purged . | . . . . . Corruption Blocked . | . . . . . Effects 14 | . 9 1 2 2 Message Errors 3 | . 2 . . 1 Matter Fused 2 | . 2 . . . Heat Flow Errors 2 | . 1 . 1 . Energy Discharges 1 | . . . 1 . Data Loss (minor) 4 | . 3 . . 1 Data Loss (major) 1 | . . 1 . . Weapon Failures 1 | . 1 . . . Overload Shots . | . . . . . Overflow Damage . | . . . . . Projectiles . | . . . . . Explosions . | . . . . . Melee . | . . . . . Knockbacks . | . . . . . Impact . | . . . . . Kinetic . | . . . . . Secondary . | . . . . . Self-Inflicted Damage . | . . . . . Shots . | . . . . . Rammed . | . . . . . Targets Rammed . | . . . . . Kicked . | . . . . . Crushed . | . . . . . Highest Temperature 257 | . 151 40 257 13 Average Temperature 49 | . 44 18 137 9 Received Heat Transfer 373 | . 306 27 . 40 Siege Activations . | . . . . . Robots Corrupted . | . . . . . Combat Hostiles . | . . . . . Parts Fried . | . . . . . Impact Corruptions . | . . . . . Robots Melted . | . . . . . Combat Hostiles . | . . . . . Parts Melted . | . . . . . Heat Transferred 703 | . 666 37 . . Parts Sabotaged . | . . . . . Parts Stolen . | . . . . . Parts Stripped . | . . . . . Power Chain Reactions . | . . . . . Alert | -11 -10 -10 -10 -9 ------- Run | Yrd Mat Min Exi Min Peak Influence 314 | . 314 208 . 6 Initial 72 | . . 72 . . Average 82 | . 95 149 . . Maximum Alert Level 1 | . 1 1 . . Low Security (%) 85 | 100 82 77 . 100 Level 1 14 | . 17 22 . . Level 2 . | . . . . . Level 3 . | . . . . . Level 4 . | . . . . . Level 5 . | . . . . . High Security . | . . . . . Max Security . | . . . . . Squads Dispatched 3 | . 3 . . . Investigation 1 | . 1 . . . Extermination . | . . . . . Reinforcement 2 | . 2 . . . Assault . | . . . . . Garrison . | . . . . . Intercept . | . . . . . Searches Triggered . | . . . . . Construction Impeded . | . . . . . Haulers Reinforced . | . . . . . Active Scanning Responses . | . . . . . Cargo Convoy Interrupts . | . . . . . Stealth | -11 -10 -10 -10 -9 --------- Run | Yrd Mat Min Exi Min Distress Signals 5 | . 4 . . 1 Communications Jammed . | . . . . . Distress Signals . | . . . . . Times Spotted 31 | . 20 5 . 6 Peak Tracking Total 6 | . 6 3 . 3 Tactical Retreats 3 | . 2 1 . . Traps | -11 -10 -10 -10 -9 ------- Run | Yrd Mat Min Exi Min Traps Triggered 2 | . 2 . . . Indirectly . | . . . . . Trap Hack Attempts . | . . . . . Triggered . | . . . . . Disarmed . | . . . . . Reprogrammed . | . . . . . Reused . | . . . . . Traps Extracted . | . . . . . Installed . | . . . . . Triggered . | . . . . . Machines | -11 -10 -10 -10 -9 ---------- Run | Yrd Mat Min Exi Min Machines Disabled 2 | . . 2 . . Max in Single Turn . | . . . . . Machines Repaired . | . . . . . Machines Dismantled . | . . . . . Machines Sabotaged . | . . . . . Overloaded Fab Kills . | . . . . . Hacking | -11 -10 -10 -10 -9 --------- Run | Yrd Mat Min Exi Min Machines Accessed 6 | . 5 . 1 . Terminals 5 | . 5 . . . Fabricators . | . . . . . Repair Stations . | . . . . . Recycling Units . | . . . . . Scanalyzers . | . . . . . Garrison Access . | . . . . . Total Hacks 12 | . 11 . 1 . Successful 5 | . 4 . 1 . Failed 7 | . 7 . . . Catastrophic . | . . . . . Database Lockouts . | . . . . . Manual 9 | . 8 . 1 . Terminals 11 | . 11 . . . Fabricators . | . . . . . Repair Stations . | . . . . . Recycling Units . | . . . . . Scanalyzers . | . . . . . Garrison Access . | . . . . . Terminal Hacks 5 | . 4 . 1 . Record 1 | . 1 . . . Prototype ID Bank 1 | . 1 . . . Branch Access Points 1 | . 1 . . . Terminal Index 1 | . 1 . . . Derelict Proto ID Bank 1 | . . . 1 . Fabricator Hacks . | . . . . . Repair Station Hacks . | . . . . . Recycling Unit Hacks . | . . . . . Scanalyzer . | . . . . . Garrison Access Hacks . | . . . . . Unauthorized Hacks . | . . . . . Terminals . | . . . . . Fabricators . | . . . . . Repair Stations . | . . . . . Recycling Units . | . . . . . Scanalyzers . | . . . . . Garrison Access . | . . . . . Data Cores Recovered . | . . . . . Used . | . . . . . Hacking Detections 5 | . 5 . . . Full Trace Events 1 | . 1 . . . Feedback Events . | . . . . . Feedback Blocked . | . . . . . Robot Schematics Acquired . | . . . . . Robots Built . | . . . . . Authchips . | . . . . . Time . | . . . . . Total Robot Build Rating . | . . . . . Part Schematics Acquired . | . . . . . Parts Built . | . . . . . Authchips . | . . . . . Time . | . . . . . Total Part Build Rating . | . . . . . Parts Repaired . | . . . . . Time . | . . . . . Parts Recycled . | . . . . . Recycled Matter . | . . . . . Retrieved Matter . | . . . . . Retrieved Components . | . . . . . Parts Scanalyzed . | . . . . . Part Schematics Acquired . | . . . . . Parts Damaged . | . . . . . Bothacking | -11 -10 -10 -10 -9 ------------ Run | Yrd Mat Min Exi Min Used RIF Installer . | . . . . . Robots Hacked . | . . . . . Non-combat . | . . . . . Combat . | . . . . . Robot Hacks Applied . | . . . . . Relay Couplers Released . | . . . . . Fabnet Peak Effective % . | . . . . . Robots Rewired . | . . . . . Allies Hacked . | . . . . . Hacks Repelled . | . . . . . Allies | -11 -10 -10 -10 -9 -------- Run | Yrd Mat Min Exi Min Total Allies 1 | . . 1 . . Largest Group 1 | . . 1 1 . Highest-Rated Group 31 | . . 31 31 . Highest-Rated Ally 31 | . . 31 31 . Total Orders 2 | . . . . 2 EXPLORE 1 | . . . . 1 RETURN 1 | . . . . 1 Ally Attacks 10 | . . 10 . . Total Damage 106 | . . 106 . . Kills 2 | . . 2 . . Allies Corrupted . | . . . . . Allies Melted . | . . . . . Intel | -11 -10 -10 -10 -9 ------- Run | Yrd Mat Min Exi Min Robot Analysis Total . | . . . . . Derelict Logs Recovered 1 | . . 1 . . Drone Launches 1 | . . . . 1 Drone Recoveries 1 | . . . . 1 Exploration | -11 -10 -10 -10 -9 ------------- Run | Yrd Mat Min Exi Min Turns Passed 1789 | 45 874 229 364 277 Spaces Moved 1319 | 37 620 191 330 141 Core 29 | 29 . . . . Treads . | . . . . . Legs . | . . . . . Wheels 1269 | 8 620 191 330 120 Hover . | . . . . . Flight 21 | . . . . 21 Fastest Speed 50 | 50 80 95 110 110 Average Speed 103 | 84 93 107 110 134 Slowest Speed 277 | 150 95 110 110 277 Overloaded Moves . | . . . . . Propulsion Burnouts . | . . . . . Robots Hopped . | . . . . . Cave-ins Triggered . | . . . . . Exploration Rate (%) 52 | 2 88 41 68 61 Regions Visited 4 Branch Regions 3 Pre-discovered Areas 1 | . . 1 . . Known Exits Taken 1 | . 1 . . . Unknown Exits Taken 3 | 1 . 1 1 . Scrap Searched 1 | . . 1 . . Spaces Dug . | . . . . . Terrain Destroyed 6 | . . . . 6 Melee . | . . . . . Projectile . | . . . . . AOE 6 | . . . . 6 Terrain Rammed . | . . . . . Walls Destroyed . | . . . . . Machines Disabled . | . . . . . Actions | -11 -10 -10 -10 -9 --------- Run | Yrd Mat Min Exi Min Total 1591 | 48 798 208 331 206 Wait 132 | . 84 4 . 44 Move 1315 | 36 619 190 329 141 Hop . | . . . . . Pick Up 30 | 5 17 5 1 2 Fast Attach 3 | 3 . . . . Attach 11 | 2 6 . . 3 Detach 1 | . . . . 1 Swap 12 | 2 3 2 . 5 Drop 7 | . 3 3 1 . Fire 80 | . 66 4 . 10 Melee . | . . . . . Ram . | . . . . . Kick . | . . . . . Crush . | . . . . . Escape Stasis . | . . . . . Rewire . | . . . . . Trap . | . . . . . Miscellaneous . | . . . . . Route ------- -11/Scrapyard -10/Materials (discovered 4 exits: [*Mat x3] / *Min) -10/Mines (discovered 2 exits: [*Mat] / *Exi) -10/Exiles -9/Mines (discovered 1 exit: [*Mat]) History --------- Turn | Location | Event 13 | -11/Scrapyard | Discovered new exit (range 15) 46 | -11/Scrapyard | Entered Materials 215 | -10/Materials | Discovered new exit (range 8) 238 | -10/Materials | Identified exit to Mines 272 | -10/Materials | Discovered new exit (range 15) 310 | -10/Materials | Build established: Mutant 379 | -10/Materials | Discovered new exit (range 10) 625 | -10/Materials | Core integrity fell below 50% 657 | -10/Materials | Lost 4 parts (1p1n1u1w) 850 | -10/Materials | Discovered new exit (range 14) 920 | -10/Materials | Entered Mines 923 | -10/Mines | Received a Mining Laser from a helpful Derelict 1083 | -10/Mines | Discovered new exit (range 13) 1145 | -10/Mines | Deemed a non-threat by the Exiles lab entrance 1145 | -10/Mines | Discovered new exit (range 5) 1149 | -10/Mines | Entered Exiles 1149 | -10/Exiles | Accompanied by 1 ally 1178 | -10/Exiles | Met 8R-AWN 1197 | -10/Exiles | Met EX-HEX 1228 | -10/Exiles | Met EX-BIN 1257 | -10/Exiles | Aligned with FarCom system 1258 | -10/Exiles | Given EX-Vault access code 1295 | -10/Exiles | Opened EX-Vault 1304 | -10/Exiles | Found Supersonic Drone Bay 1329 | -10/Exiles | Warned to stay clear of 0b10 Research branches 1361 | -10/Exiles | Met EX-DEC 1395 | -10/Exiles | Visited The Gauntlet 1501 | -10/Exiles | Discovered new exit (range 14) 1513 | -10/Exiles | Left Exiles lab with Supersonic Drone Bay 1513 | -10/Exiles | Entered Mines 1531 | -9/Mines | Assembled infested the area 1573 | -9/Mines | Core integrity fell below 20% 1734 | -9/Mines | Discovered new exit (range 54) 1790 | -9/Mines | Destroyed by as-85824 with Assembled Heavy Rifle Last Messages --------------- Demolisher response squad. as-32822 destroyed. Trailblazer released from Supersonic Drone Bay. Wheel destroyed. as-49577 destroyed. as-62661 destroyed. System corrupted: Component data lost. Acquired 20 matter. Acquired 18 matter. Acquired Wheel. Acquired Imp. Terrain Scanner. Acquired 2 matter. Acquired 15 matter. E MQJPJAPNOAR PY4NAVC2M#THB4EY T-07 Excavator is excavating. EXIT=FOUND Trailblazer retrieved by Supersonic Drone Bay. Acquired 22 matter. Acquired 17 matter. Knocked back. Map ----- +----------------------------------------------------+ | ??????????????## #?#####????# ##?????????? | | ???????????????####### #######???? ##????????? | | ?????????????????????# ## ##?## #????????? | | ?????????????????????# ### #????????? | | ?????????????????????# " #??????????? | | ?????????????????????# ! ##??????????? | | ?????????????????????# ##### % ##???????????? | | ????????????????????# ##???##% #??######????? | | ????????????????????# ##?????## ##?########???? | | ?????????????# #???# ###?????## ####### ###???? | | ???????????? #??# #?????## ###### ##???? | | ????????????? #?# ##????## ##???? | | ?????????????# ?### ##???## ###???? | | ??????????????# ?? # ##??######## ###???? | | ??????????????# ### ##?######## ##????? | | ??????????????# # #???????## ##????? | | ?????????????## # #???????### ###????? | | ?????????????# #???????### ####????? | | ??????????????# #????????## ###?????? | | ??????????????# ##???????## ##??????? | | ??????????????#! %* ! #???????## ######### | | ???????????????# % %! #???????## ######### | | ??????????????????# ! ##??????## | | ????????????????????# ##?????####### #### | | ????????????????????# ##????####### #### | | ?????????????????????# @ ##????????## ##?# | | ?????????????????????# #####????## ##?# | | ?????????????????????# aa ###! ##???## ##?# | | ?????????????????????# ##?#### ###### ##?# | | ???????????????####?## %%##?????## ### ##?# | | ???????????????# ## =#???????## ## #### | | ????????????????# ! #????????# ## #### | | ????????????????# #????????# #?## | | ????????????????# % #????????## ####?## | | ????????????????### !%=#?????????### #####?## | | ??????????????????# ! ##???????????## #??????# | | ??????????????????####%%#?????????????# ##?????? | | ?????????????????????#=a#????????????## = ####??? | | ?????????????????????# #####????????# #??? | | ?????????????????????#!% #???????# #?? | | ?????????????????????###### #???????# ### #? | | ??????????????????????????# #???????## ##?## #? | | ??????????????????????????# #????????##?????# ##? | | ??????????????????????????# #####????????????###?? | | ??????????????????????????# #????????????????? | | ??????????????????????????#### #????????????????? | | ??????????????????##?????????# #????????????????? | | ??????????????????# ##???????# #????????????????? | | ####??????????????# ####????# #????????????????? | | #??????????????# ##???# #????????????????? | +----------------------------------------------------+ Best States ------------- Heat Dissipation 25 Energy Generation 10 Energy Capacity 250 Matter Stores 300 Matter Capacity 300 Sight Range 16 Terrain Scan Density 10 Power Shielding 33 Evasion (%) 50 Item Schematics ----------------- None Robot Schematics ------------------ None Fabricated ------------ Nothing Alien Tech Used ----------------- None Achievements -------------- None Challenges ------------ None Game ------ Seed ConcussivePhysicsCarapace Manual? 0 Play Time 00:21:38 Cumulative 22.6 hours Start 2024.10.04 @ 18:15:47 End 2024.10.04 @ 18:39:41 Sessions 1 Manual Loads 0 Difficulty Rogue Special Mode None Game No. 22 Rogue 21 Adventurer 1 Explorer 0 Win Type - Total 0 Types 0/0/0/0/0/0/0/0/0 Lore% 12 Gallery% 21 Achievement% 21 Wizard Run 0 Options --------- Layout 1 ASCII 0 Keyboard 0 Movement Mouse Keybinds 0 Fullscreen 1 Font 32/SmallcapsGlow Map View 50x35 Zoom Use 0% Tactical HUD 0 Map Filters NONE Filters NONE Steam 1 RUN: 8f5ce049-f418-4e0c-bf1a-c80a4478df86